fUSD/lending_fUSD_20260123
["ID","MTS","AMOUNT","RATE_DAILY","PERIOD"]
[403074446,1769130633368,-1215.0,0.00018457,2]
[403074447,1769130633379,-1037.0,0.00018466,2]
[403074448,1769130633388,-2351.0,0.00018511,2]
[403074449,1769130633398,-1037.0,0.00018521,2]
[403074450,1769130633409,-2975.38,0.00018533,2]
[403074451,1769130633418,-9999.99,0.00018533,2]
[403074452,1769130633429,-6779.77,0.00018533,2]
[403074453,1769130633439,-9999.99,0.00018533,2]
[403074454,1769130633448,-2897.88,0.00018533,2]
[403074455,1769130633458,-3266.95,0.00018533,2]
[403074456,1769130633468,-1524.15,0.00018533,2]
[403074457,1769130633477,-332.97,0.00018533,2]
[403074458,1769130633487,-5475.51,0.00018533,2]
[403074459,1769130633496,-150.99,0.00018533,2]
[403074460,1769130633505,-5142.22,0.00018533,2]
[403074461,1769130633515,-463.56,0.00018533,2]
[403074462,1769130633525,-1215.0,0.00018571,2]
[403074463,1769130633534,-1037.0,0.00018576,2]
[403074464,1769130633543,-1215.0,0.00018581,2]
[403074465,1769130633552,-1215.0,0.00018597,2]
[403074466,1769130633562,-1101.4,0.00018615,2]
[403074467,1769130633571,-1037.0,0.00018631,2]
[403074468,1769130633581,-1037.0,0.00018685,2]
[403074469,1769130633590,-166.66,0.00018702,2]
[403074470,1769130633600,-1037.0,0.0001874,2]
[403074471,1769130633610,-1000.0,0.00018768,2]
[403074472,1769130633619,-985.32292238,0.00018768,2]
[403074473,1769130633628,-21990.57,0.00018773,2]
[403074474,1769130633638,-1037.0,0.00018795,2]
[403074475,1769130633648,-1215.0,0.00018827,2]
[403074476,1769130633658,-1037.0,0.0001885,2]
[403074477,1769130633668,-1037.0,0.00018904,2]
[403074478,1769130633678,-1059.99013325,0.00018959,2]
[403074479,1769130633687,-500.0,0.00018997,2]
[403074480,1769130633699,-150.0,0.00019,2]
[403074481,1769130633708,-300.0,0.00019,2]
[403074482,1769130633718,-200.0,0.00019082,2]
[403074483,1769130633727,-1215.0,0.00019116,2]
[403074484,1769130633736,-500.0,0.00019119,2]
[403074485,1769130633746,-500.0,0.00019178,2]
[403074486,1769130633755,-166.66,0.0001932,2]
[403074487,1769130633765,-487.0,0.00019339,2]
[403074488,1769130633774,-487.0,0.00019339,2]
[403074489,1769130633784,-487.0,0.00019339,2]
[403074490,1769130633793,-487.0,0.00019339,2]
[403074491,1769130633802,-487.0,0.00019339,2]
[403074492,1769130633811,-487.0,0.00019339,2]
[403074493,1769130633821,-487.0,0.00019339,2]
[403074494,1769130633835,-487.0,0.00019339,2]
[403074495,1769130633844,-487.0,0.00019339,2]
[403074496,1769130633853,-487.0,0.00019339,2]
[403074497,1769130633862,-487.0,0.00019339,2]
[403074498,1769130633873,-487.0,0.00019339,2]
[403074499,1769130633883,-487.0,0.00019339,2]
[403074500,1769130633895,-487.0,0.00019339,2]
[403074501,1769130633907,-487.0,0.00019339,2]
[403074502,1769130633916,-487.0,0.00019339,2]
[403074503,1769130633926,-487.0,0.00019339,2]
[403074504,1769130633935,-487.0,0.00019339,2]
[403074505,1769130633945,-487.0,0.00019339,2]
[403074506,1769130633954,-487.0,0.00019339,2]
[403074507,1769130633964,-487.0,0.00019339,2]
[403074508,1769130633973,-500.69,0.00019339,2]
[403074509,1769130633983,-1000.0,0.00019405,2]
[403074510,1769130633992,-508.0,0.000196,2]
[403074511,1769130634002,-1000.0,0.00019726,2]
[403074512,1769130634011,-150.34,0.00019893,30]
[403074513,1769130634021,-166.66,0.00019937,2]
[403074514,1769130634031,-1000.0,0.0002,2]
[403074515,1769130634040,-150.0,0.0002,2]
[403074516,1769130634049,-823.0,0.00020049,2]
[403074517,1769130634058,-1000.0,0.00020133,2]
[403074518,1769130634068,-250.0,0.00020228,2]
[403074519,1769130634077,-1000.0,0.00020274,2]
[403074520,1769130634086,-3292.0,0.00020355,2]
[403074521,1769130634096,-1000.0,0.00020548,2]
[403074522,1769130634106,-166.66,0.00020554,2]
[403074523,1769130634115,-449.92,0.00020668,2]
[403074524,1769130634124,-1101.4,0.00020783,2]
[403074525,1769130634133,-1999.0,0.00020822,2]
[403074526,1769130634142,-1000.0,0.00020861,2]
[403074527,1769130634151,-449.92,0.00020942,2]
[403074528,1769130634161,-350.0,0.00021,2]
[403074529,1769130634170,-1000.0,0.00021096,2]
[403074530,1769130634179,-166.66,0.00021172,2]
[403074531,1769130634189,-4335.11156855,0.00021196,2]
[403074532,1769130634198,-449.92,0.00021216,2]
[403074533,1769130634207,-1000.0,0.0002137,2]
[403074534,1769130634217,-150.0,0.00021409,2]
[403074535,1769130634226,-449.94,0.0002149,2]
[403074536,1769130634235,-1000.0,0.00021588,2]
[403074537,1769130634601,-1000.0,0.00021644,2]
[403074538,1769130634612,-166.66,0.00021789,2]
[403074539,1769130634621,-1000.0,0.00021918,2]
[403074540,1769130634630,-156.0,0.00021936,2]
[403074541,1769130634640,-161.969,0.00021987,2]
[403074542,1769130634649,-1332.0,0.00021987,2]
[403074543,1769130634658,-3474.0,0.00021987,2]
[403074544,1769130634667,-1407.0,0.00021987,2]
[403074545,1769130634676,-261.0,0.00021987,2]
[403074546,1769130634686,-1203.0,0.00021987,2]
[403074547,1769130634695,-915.0,0.00021987,2]
[403074548,1769130634705,-4828.0,0.00021987,2]
[403074549,1769130634713,-2441.0,0.00021987,2]
[403074550,1769130634723,-1000.0,0.00022192,2]
[403074551,1769130634733,-1000.0,0.00022316,2]
[403074552,1769130634743,-1340.0,0.00022383,2]
[403074553,1769130634752,-980.82,0.00022562,2]
[403074554,1769130634761,-15367.07,0.00022562,2]
[403074555,1769130634771,-2367.73,0.00022562,2]
[403074556,1769130634780,-508.0,0.0002262,4]
[403074557,1769130634789,-1101.4,0.00022951,2]
[403074558,1769130634798,-500.0,0.00023178,2]
[403074559,1769130634807,-1440.68,0.000234,7]
[403074560,1769130634816,-2483.0,0.00023492,2]
[403074561,1769130634826,-4335.11156855,0.00024139,2]
[403074562,1769130634837,-150.0,0.00024658,2]
[403074563,1769130634846,-1000.0,0.00024658,2]
[403074564,1769130634856,-500.0,0.00024873,2]
[403074565,1769130634865,-500.0,0.00024873,2]
[403074566,1769130634875,-500.0,0.00024873,2]
[403074567,1769130634884,-253.27120191,0.00024873,2]
[403074568,1769130634894,-500.0,0.00024873,2]
[403074569,1769130634904,-500.0,0.00024873,2]
[403074570,1769130634914,-500.0,0.00024873,2]
[403074571,1769130634923,-500.0,0.00024873,2]
[403074572,1769130634933,-300.0,0.00024873,2]
[403074573,1769130634942,-555.24092533,0.00024873,2]
[403074574,1769130634951,-198.03320517,0.00024873,2]
[403074575,1769130634960,-500.01,0.00024873,2]
[403074576,1769130634969,-500.0,0.00024873,2]
[403074577,1769130634978,-500.0,0.00024873,2]
[403074578,1769130634988,-500.0,0.00024873,2]
[403074579,1769130634997,-501.06937491,0.00024873,2]
[403074580,1769130635007,-300.0,0.00024873,2]
[403074581,1769130635016,-500.0,0.00024873,2]
[403074582,1769130635027,-500.0,0.00024873,2]
[403074583,1769130635037,-500.0,0.00024873,2]
[403074584,1769130635046,-208.49097933,0.00024873,2]
[403074585,1769130635056,-500.0,0.00024873,2]
[403074586,1769130635065,-511.55857116,0.00024873,2]
[403074587,1769130635074,-169.44798513,0.00024873,2]
[403074588,1769130635083,-500.0,0.00024873,2]
[403074589,1769130635092,-500.0,0.00024873,2]
[403074590,1769130635101,-165.65961635,0.00024873,2]
[403074591,1769130635111,-167.71776384,0.00024873,2]
[403074592,1769130635121,-500.0,0.00024873,2]
[403074593,1769130635130,-500.0,0.00024873,2]
[403074594,1769130635139,-500.0,0.00024873,2]
[403074595,1769130635148,-191.58643206,0.00024873,2]
[403074596,1769130635157,-500.0,0.00024873,2]
[403074597,1769130635167,-283.97379908,0.00024873,2]
[403074598,1769130635176,-308.77929123,0.00024873,2]
[403074599,1769130635185,-161.85226632,0.00024873,2]
[403074600,1769130635194,-500.0,0.00024873,2]
[403074601,1769130635203,-500.0,0.00024873,2]
[403074602,1769130635213,-500.0,0.00024873,2]
[403074603,1769130635222,-1332.0,0.00024987,2]
[403074604,1769130635231,-3474.0,0.00024987,2]
[403074605,1769130635240,-1407.0,0.00024987,2]
[403074606,1769130635249,-184.0,0.00024987,2]
[403074607,1769130635259,-1203.0,0.00024987,2]
[403074608,1769130635268,-915.0,0.00024987,2]
[403074609,1769130635279,-4828.0,0.00024987,2]
[403074610,1769130635288,-2441.0,0.00024987,2]
[403074611,1769130635300,-1101.4,0.0002512,2]
[403074612,1769130635310,-152.32,0.00025411,2]
[403074613,1769130635319,-1000.0,0.00025421,2]
[403074614,1769130635328,-1000.0,0.00025421,2]
[403074615,1769130635337,-890.41064082,0.00025421,2]
[403074616,1769130635347,-1000.0,0.00025421,2]
[403074617,1769130635361,-1000.0,0.00025421,2]
[403074618,1769130635370,-1000.0,0.00025421,2]
[403074619,1769130635379,-1149.22978325,0.00025421,2]
[403074620,1769130635388,-785.54220814,0.00025421,2]
[403074621,1769130635397,-1000.0,0.00025421,2]
[403074622,1769130635407,-1000.0,0.00025421,2]
[403074623,1769130635416,-500.0,0.00025421,2]
[403074624,1769130635425,-1000.0,0.00025421,2]
[403074625,1769130635435,-508.0,0.0002564,7]
[403074626,1769130635445,-196.8381637,0.00025968,2]
[403074627,1769130635455,-500.0,0.00025968,2]
[403074628,1769130635464,-500.0,0.00025968,2]
[403074629,1769130635475,-500.0,0.00025968,2]
[403074630,1769130635483,-4335.11156855,0.00027083,2]
[403074631,1769130635493,-150.0,0.00027123,2]
[403074632,1769130635502,-3383.05,0.00027205,2]
[403074633,1769130635511,-1101.4,0.00027288,2]
[403074634,1769130635520,-1440.68,0.000274,7]
[403074635,1769130635530,-2000.0,0.000279,2]
[403074636,1769130635539,-2000.0,0.000279,2]
[403074637,1769130635548,-1331.0,0.00027987,2]
[403074638,1769130635557,-3474.0,0.00027987,2]
[403074639,1769130635566,-1407.0,0.00027987,2]
[403074640,1769130635576,-1203.0,0.00027987,2]
[403074641,1769130635585,-915.0,0.00027987,2]
[403074642,1769130635594,-4828.0,0.00027987,2]
[403074643,1769130635604,-2441.0,0.00027987,2]
[403074644,1769130635613,-508.0,0.0002866,10]
[403074645,1769130635622,-1101.4,0.00029456,2]
[403074646,1769130635632,-150.0,0.00029589,2]
[403074647,1769130635641,-150.5654977,0.0003,2]
[403074648,1769130635651,-45848.0,0.0003,2]
[403074649,1769130635660,-4335.11156855,0.00030026,2]
[403074650,1769130635669,-154.91,0.000302,30]
[403074651,1769130635679,-500.0,0.00030877,2]
[403074652,1769130635688,-3474.0,0.00030987,2]
[403074653,1769130635698,-1203.0,0.00030987,2]
[403074654,1769130635708,-915.0,0.00030987,2]
[403074655,1769130635717,-228.318,0.00030987,2]
[403074656,1769130635727,-2441.0,0.00030987,2]
[403074657,1769130635737,-154.91,0.000313,30]
[403074658,1769130635747,-1598.0,0.000316,2]
[403074659,1769130635756,-2000.0,0.000316,2]
[403074660,1769130635766,-1101.4,0.00031624,2]
[403074661,1769130635776,-508.0,0.0003168,13]
[403074662,1769130635785,-1440.68,0.000317,7]
[403074663,1769130635794,-150.0,0.00032055,2]
[403074664,1769130635804,-874.5,0.00032622,30]
[403074665,1769130635813,-405.73877397,0.00032658,2]
[403074666,1769130635823,-168.6024279,0.00032877,2]
[403074667,1769130635837,-500.0,0.00032877,2]
[403074668,1769130635846,-500.0,0.00032932,2]
[403074669,1769130635855,-4335.11156855,0.0003297,2]
[403074670,1769130635865,-500.0,0.00032987,2]
[403074671,1769130635877,-2000.0,0.00033,5]
[403074672,1769130635887,-500.0,0.00033041,2]
[403074673,1769130635897,-500.0,0.00033096,2]
[403074674,1769130635906,-500.0,0.00033151,2]
[403074675,1769130635916,-500.0,0.00033206,2]
[403074676,1769130635925,-500.0,0.00033261,2]
[403074677,1769130635935,-500.0,0.00033315,2]
[403074678,1769130635944,-500.0,0.0003337,2]
[403074679,1769130635953,-154.91,0.000334,30]
[403074680,1769130635963,-500.0,0.00033425,2]
[403074681,1769130635972,-500.0,0.0003348,2]
[403074682,1769130635981,-500.0,0.00033535,2]
[403074683,1769130635991,-500.0,0.00033589,2]
[403074684,1769130636000,-500.0,0.00033644,2]
[403074685,1769130636010,-500.0,0.00033699,2]
[403074686,1769130636019,-638.11609551,0.00033754,2]
[403074687,1769130636029,-1101.4,0.00033792,5]
[403074688,1769130636040,-3474.0,0.00033987,2]
[403074689,1769130636050,-1203.0,0.00033987,2]
[403074690,1769130636061,-915.0,0.00033987,2]
[403074691,1769130636071,-152.0,0.00034066,3]
[403074692,1769130636081,-150.0,0.00034173,5]
[403074693,1769130636091,-300.0,0.00034173,5]
[403074694,1769130636101,-530.37,0.00034267,2]
[403074695,1769130636111,-150.0,0.00034521,2]
[403074696,1769130636122,-154.91,0.000347,30]
[403074697,1769130636132,-508.0,0.000347,16]
[403074698,1769130636142,-250.0,0.00034721,5]
[403074699,1769130636152,-600.0,0.00034721,5]
[403074700,1769130636163,-475.71741486,0.00034794,7]
[403074701,1769130636174,-341.07356931,0.00034849,120]
[403074702,1769130636183,-1121.57411122,0.0003497,2]
[403074703,1769130636192,-1440.68,0.00035,14]
[403074704,1769130636201,-200.0,0.00035268,5]
[403074705,1769130636210,-601.2280619,0.00035268,5]
[403074706,1769130636220,-1598.0,0.000353,2]
[403074707,1769130636230,-1000.0,0.000353,2]
[403074708,1769130636239,-346.97839634,0.00035369,28]
[403074709,1769130636249,-612.11101981,0.00035369,28]
[403074710,1769130636259,-534.42943587,0.00035616,7]
[403074711,1769130636267,-500.0,0.00035616,7]
[403074712,1769130636277,-500.0,0.00035616,7]
[403074713,1769130636286,-260.22689207,0.00035616,7]
[403074714,1769130636295,-915.68147767,0.00035869,28]
[403074715,1769130636305,-1238.9454,0.00035869,28]
[403074716,1769130636314,-150.34,0.00035875,120]
[403074717,1769130636323,-4335.11156855,0.00035913,2]
[403074718,1769130636332,-1101.4,0.0003596,7]
[403074719,1769130636341,-530.37,0.0003598,2]
[403074720,1769130636351,-928.78510297,0.00036245,2]
[403074721,1769130636360,-400.0,0.00036511,2]
[403074722,1769130636369,-405.73877397,0.00036826,2]
[403074723,1769130636378,-154.91,0.000369,30]
[403074724,1769130636387,-150.0,0.00036986,2]
[403074725,1769130636396,-1203.0,0.00036987,2]
[403074726,1769130636406,-915.0,0.00036987,2]
[403074727,1769130636415,-152.85049,0.0003699,84]
[403074728,1769130636424,-152.8505,0.0003709,86]
[403074729,1769130636433,-152.8505,0.0003719,87]
[403074730,1769130636442,-500.0,0.00037199,14]
[403074731,1769130636451,-500.0,0.00037199,14]
[403074732,1769130636460,-500.0,0.00037199,14]
[403074733,1769130636469,-500.0,0.00037199,14]
[403074734,1769130636479,-500.0,0.00037199,14]
[403074735,1769130636488,-500.0,0.00037199,14]
[403074736,1769130636497,-500.0,0.00037199,14]
[403074737,1769130636507,-500.0,0.00037199,14]
[403074738,1769130636516,-500.0,0.00037199,14]
[403074739,1769130636526,-151.0,0.00037199,14]
[403074740,1769130636535,-500.0,0.00037199,14]
[403074741,1769130636544,-151.0,0.00037199,14]
[403074742,1769130636554,-500.0,0.00037199,14]
[403074743,1769130636563,-151.0,0.00037199,14]
[403074744,1769130636572,-151.0,0.00037199,14]
[403074745,1769130636582,-151.0,0.00037199,14]
[403074746,1769130636592,-151.0,0.00037199,14]
[403074747,1769130636601,-151.0,0.00037199,14]
[403074748,1769130636611,-151.0,0.00037199,14]
[403074749,1769130636620,-151.0,0.00037199,14]
[403074750,1769130636630,-151.0,0.00037199,14]
[403074751,1769130636639,-151.0,0.00037199,14]
[403074752,1769130636649,-152.8505,0.0003729,88]
[403074753,1769130636659,-150.0,0.000373,2]
[403074754,1769130636668,-150.0,0.000373,16]
[403074755,1769130636678,-177.99,0.00037325,2]
[403074756,1769130636688,-200.0,0.00037325,2]
[403074757,1769130636697,-504.91600383,0.00037329,2]
[403074758,1769130636707,-1317.79840837,0.00037338,4]
[403074759,1769130636716,-151.0,0.00037366,7]
[403074760,1769130636725,-151.0,0.00037366,7]
[403074761,1769130636735,-151.0,0.00037366,7]
[403074762,1769130636745,-151.0,0.00037366,7]
[403074763,1769130636754,-151.0,0.00037366,7]
[403074764,1769130636763,-151.0,0.00037366,7]
[403074765,1769130636773,-151.0,0.00037366,7]
[403074766,1769130636783,-151.0,0.00037366,7]
[403074767,1769130636792,-151.0,0.00037366,7]
[403074768,1769130636802,-151.0,0.00037366,7]
[403074769,1769130636811,-150.0,0.00037366,2]
[403074770,1769130636821,-14428.25152674,0.00037366,2]
[403074771,1769130636834,-700.0,0.0003737,2]
[403074772,1769130636844,-180.99535885,0.000374,2]
[403074773,1769130636853,-1440.68,0.000374,14]
[403074774,1769130636862,-1000.0,0.000374,7]
[403074775,1769130636872,-5000.00005404,0.000375,60]
[403074776,1769130636882,-200.0,0.0003757,2]
[403074777,1769130636891,-152.0,0.00037581,4]
[403074778,1769130636902,-484.22,0.00037677,2]
[403074779,1769130636911,-1224.64,0.00037677,2]
[403074780,1769130636921,-681.34,0.00037677,2]
[403074781,1769130636931,-1224.64,0.00037677,2]
[403074782,1769130636941,-1224.64,0.00037677,2]
[403074783,1769130636952,-968.44,0.00037677,2]
[403074784,1769130636962,-530.37,0.00037693,2]
[403074785,1769130636971,-508.0,0.0003772,19]
[403074786,1769130636981,-1020.8,0.000379,15]
[403074787,1769130636991,-3396.80742108,0.000381,33]
[403074788,1769130637001,-1101.4,0.00038129,30]
[403074789,1769130637010,-268.8,0.000383,18]
[403074790,1769130637019,-968.44,0.00038636,2]
[403074791,1769130637029,-1224.64,0.00038636,2]
[403074792,1769130637039,-484.22,0.00038636,2]
[403074793,1769130637048,-1224.64,0.00038636,2]
[403074794,1769130637058,-1224.64,0.00038636,2]
[403074795,1769130637067,-612.32,0.00038636,2]
[403074796,1769130637076,-968.44,0.00038637,2]
[403074797,1769130637087,-612.32,0.00038639,2]
[403074798,1769130637098,-612.32,0.00038639,2]
[403074799,1769130637107,-612.32,0.00038639,2]
[403074800,1769130637117,-612.32,0.00038639,2]
[403074801,1769130637127,-1103.38,0.00038639,2]
[403074802,1769130637137,-152.23105344,0.00038712,7]
[403074803,1769130637146,-154.91,0.000388,30]
[403074804,1769130637155,-1143.012,0.00038826,52]
[403074805,1769130637165,-500.0,0.00038845,120]
[403074806,1769130637175,-612.0,0.00038845,120]
[403074807,1769130637185,-200.0,0.00038845,2]
[403074808,1769130637194,-200.0,0.00038845,2]
[403074809,1769130637203,-200.0,0.00038845,2]
[403074810,1769130637211,-200.0,0.00038845,2]
[403074811,1769130637220,-200.0,0.00038845,2]
[403074812,1769130637232,-200.0,0.00038845,2]
[403074813,1769130637242,-200.0,0.00038845,2]
[403074814,1769130637251,-200.0,0.00038845,2]
[403074815,1769130637260,-200.0,0.00038845,2]
[403074816,1769130637269,-200.0,0.00038845,2]
[403074817,1769130637278,-200.0,0.00038845,2]
[403074818,1769130637287,-200.0,0.00038845,2]
[403074819,1769130637295,-200.0,0.00038845,2]
[403074820,1769130637304,-200.0,0.00038845,2]
[403074821,1769130637313,-200.0,0.00038845,2]
[403074822,1769130637322,-200.0,0.00038845,2]
[403074823,1769130637331,-200.0,0.00038845,2]
[403074824,1769130637340,-184.0,0.00038845,2]
[403074825,1769130637349,-200.0,0.00038845,2]
[403074826,1769130637358,-200.0,0.00038845,2]
[403074827,1769130637369,-200.0,0.00038845,2]
[403074828,1769130637379,-200.0,0.00038845,2]
[403074829,1769130637389,-200.0,0.00038845,2]
[403074830,1769130637398,-200.0,0.00038845,2]
[403074831,1769130637407,-200.0,0.00038845,2]
[403074832,1769130637417,-200.0,0.00038845,2]
[403074833,1769130637427,-200.0,0.00038845,2]
[403074834,1769130637436,-200.0,0.00038845,2]
[403074835,1769130637445,-200.0,0.00038845,2]
[403074836,1769130637457,-200.0,0.00038845,2]
[403074837,1769130637470,-200.0,0.00038845,2]
[403074838,1769130637484,-200.0,0.00038845,2]
[403074839,1769130637497,-200.0,0.00038845,2]
[403074840,1769130637509,-200.0,0.00038845,2]
[403074841,1769130637519,-200.0,0.00038845,2]
[403074842,1769130637530,-200.0,0.00038845,2]
[403074843,1769130637541,-200.0,0.00038845,2]
[403074844,1769130637554,-4335.11156855,0.00038857,2]
[403074845,1769130637566,-209.0,0.0003891,30]
[403074846,1769130637579,-3383.05,0.00038986,2]
[403074847,1769130637591,-1440.68,0.00039,14]
[403074848,1769130637604,-1000.0,0.00039,2]
[403074849,1769130637618,-252.981577,0.00039,17]
[403074850,1769130637630,-25000.0,0.00039015,15]
[403074851,1769130637642,-25000.0,0.00039015,15]
[403074852,1769130637653,-304.29258002,0.00039043,2]
[403074853,1769130637664,-407.20579646,0.00039043,2]
[403074854,1769130637675,-455.99750001,0.00039043,2]
[403074855,1769130637687,-1075.4694844,0.00039043,2]
[403074856,1769130637699,-369.13919868,0.00039043,2]
[403074857,1769130637711,-687.24855712,0.00039043,2]
[403074858,1769130637723,-405.83663952,0.00039043,2]
[403074859,1769130637736,-405.57346511,0.00039043,2]
[403074861,1769130637748,-530.37,0.00039407,2]
[403074863,1769130637760,-150.0,0.00039452,2]
[403074865,1769130637772,-10000.0,0.00039495,2]
[403074867,1769130637785,-2500.0007,0.000395,80]
[403074868,1769130637797,-612.32,0.00039682,2]
[403074869,1769130637809,-612.32,0.00039682,2]
[403074870,1769130637822,-964.16,0.00039682,2]
[403074871,1769130637840,-500.0,0.00039725,14]
[403074872,1769130637853,-500.0,0.00039725,14]
[403074873,1769130637864,-179.77,0.00039748,2]
[403074874,1769130637879,-238.33,0.00039748,2]
[403074875,1769130637892,-6999.999999,0.00039876,5]
[403074876,1769130637904,-40447.45651816,0.000399,120]
[403074877,1769130637916,-154.91,0.000399,30]
[403074878,1769130637931,-700.0,0.0003997,2]
[403074879,1769130637943,-700.0,0.0003997,2]
[403074880,1769130637955,-400.0,0.0003997,2]
[403074881,1769130637966,-1203.0,0.00039987,2]
[403074882,1769130637977,-915.0,0.00039987,2]
[403074883,1769130637988,-150.0,0.00039999,20]
[403074884,1769130637999,-152.0,0.0004,120]
[403074885,1769130638009,-152.0,0.0004,120]
[403074886,1769130638020,-46070.7132698,0.0004,7]
[403074887,1769130638033,-300000.0,0.0004,15]
[403074888,1769130638048,-31098.89009453,0.0004,28]
[403074889,1769130638060,-256.93775894,0.0004,30]
[403074890,1769130638070,-1000.0,0.0004,2]
[403074891,1769130638080,-200.00625336,0.0004,120]
[403074892,1769130638091,-290.0,0.0004,45]
[403074893,1769130638100,-3826.0,0.0004,20]
[403074894,1769130638111,-510.05,0.0004,120]
[403074895,1769130638123,-20287.0,0.0004,2]
[403074896,1769130638135,-336.33,0.0004,120]
[403074897,1769130638147,-214.58,0.0004,120]
[403074898,1769130638158,-649.48,0.0004,120]
[403074899,1769130638168,-267.93,0.0004,120]
[403074900,1769130638179,-253.0,0.0004,30]
[403074901,1769130638189,-1110.76,0.000401,120]
[403074902,1769130638200,-200.0,0.00040133,2]
[403074903,1769130638211,-1440.68,0.000402,14]
[403074904,1769130638223,-151.0,0.00040203,14]
[403074905,1769130638234,-25000.0,0.00040206,15]
[403074906,1769130638245,-25000.0,0.00040206,15]
[403074907,1769130638256,-200.0,0.0004021,120]
[403074908,1769130638269,-25000.0,0.00040213,15]
[403074909,1769130638279,-25000.0,0.00040222,15]
[403074910,1769130638290,-25000.0,0.00040231,15]
[403074911,1769130638301,-25000.0,0.00040239,15]
[403074913,1769130638311,-25000.0,0.00040248,15]
[403074915,1769130638322,-25000.0,0.00040257,15]
[403074917,1769130638333,-1101.4,0.00040297,120]
[403074919,1769130638344,-2912.60433824,0.00040353,2]
[403074920,1769130638355,-5800.0,0.00040453,14]
[403074922,1769130638366,-5800.0,0.00040462,14]
[403074924,1769130638376,-5800.0,0.0004047,14]
[403074925,1769130638387,-500.0,0.00040547,14]
[403074926,1769130638398,-500.0,0.00040547,14]
[403074927,1769130638409,-179.67,0.00040557,2]
[403074928,1769130638419,-152.0,0.000406,120]
[403074929,1769130638430,-836.0,0.0004068,11]
[403074930,1769130638441,-835.0,0.00040687,11]
[403074931,1769130638452,-152.0,0.000407,120]
[403074932,1769130638463,-508.0,0.0004074,22]
[403074933,1769130638476,-500.0,0.000408,60]
[403074934,1769130638487,-500.0,0.000408,60]
[403074935,1769130638503,-500.0,0.000408,60]
[403074936,1769130638514,-500.0,0.000408,60]
[403074937,1769130638525,-500.0,0.000408,60]
[403074938,1769130638536,-500.0,0.000408,60]
[403074939,1769130638548,-500.0,0.000408,60]
[403074940,1769130638559,-500.0,0.000408,60]
[403074941,1769130638570,-500.0,0.000408,60]
[403074942,1769130638581,-500.0,0.000408,60]
[403074943,1769130638592,-500.0,0.000408,60]
[403074944,1769130638605,-500.0,0.000408,60]
[403074945,1769130638616,-500.0,0.000408,60]
[403074946,1769130638629,-500.0,0.000408,60]
[403074947,1769130638641,-500.0,0.000408,60]
[403074948,1769130638652,-500.0,0.000408,60]
[403074949,1769130638664,-500.0,0.000408,60]
[403074950,1769130638675,-500.0,0.000408,60]
[403074951,1769130638687,-500.0,0.000408,60]
[403074952,1769130638699,-500.0,0.000408,60]
[403074953,1769130638710,-500.0,0.000408,60]
[403074954,1769130638721,-500.0,0.000408,60]
[403074955,1769130638733,-500.0,0.000408,60]